Workbook

Sheet Summary
A3: Tswelopele Local Municipality
B5: SHORT TERM INSURANCE SUMMARY
B7: Period of Insurance | D7: 01 July 2023 - 30 June 2024
D9: RENEWAL 2023/2024
B10: SECTION | D10: SUM INSURED
B11: Combined
B12: - Standard Constructed Buildings | D12: R 413,398,293
B13: - Standard Constructed Buildings (Contents)
B14: - Sub-stations, mini sub-stations, transformers, etc.
B15: - Property in the open
B16: - Water purification works and pump stations
B17: - Sewerage Works and Pumps Station
B18: - Property More Specifically Insured
B19: - Reservoirs
B20: - Non Standard Constructed Buildings (Thatch) | D20: R 16,931,372
B21: - Non Standard Constructed Buildings (Contents)
B22: - Property More Specifically Insured Non Standard
B23: - Private dwellings, residential units hostels, Flats | D23: R 7,569,028 | G23: =SUM(D12:D23) -> R 437,898,693
B24: -Escalation 15% | D24: R 503,583,497
B25: - Capital Additions 20% | D25: R 525,478,431
B30: Extensions
B31: - Subsidence and Landslip | D31: Yes
B32: - Sum insured | D32: R 1,000,000
B33: - Motor Vehicles whilst parked at Insured | D33: Yes
B34: - Sum insured | D34: R 5,000,000
B35: - Riot and Strike (other than RSA and Namibia) | D35: No
B36: - Leakage of oils, chemicals or other fluids | D36: Yes
B37: - Wash basins and Sanitary Ware | D37: Yes
B38: - Thatch structures unless specifically insured | D38: R 100 000 Max Annual Limit
B39: - Theft of immovable property | D39: R 5,000,000
B40: - Malicious damage caused by thieves | D40: R 5,000,000
B41: - Reasonable Precautions | D41: R 10,000
B42: - Claims Preparation Costs | D42: R 100,000
B44: Additional Sasria Extensions | E44: Must be shown on Sasria summary
B45: - Professional Fees | D45: R 5,000,000 | E45: Include Sasria Calculations
B46: - Clearance cost | D46: R 1,000,000
B47: - Security Cost | D47: R 1,000,000
B48: - Statutory Duties | D48: R 1,000,000
B49: - Fire Protection System update | D49: R 1,000,000
B50: - Goods in the open | D50: R 5,000,000
B51: - Fir Extinguishing | D51: R 5,000,000
B52: - Motor Vehicles whilst parked | D52: R 5,000,000
B54: TOTAL BUILDING COMBINED | D54: =SUM(D12:D42) -> R 1,483,070,621
B56: Business Interruption
B57: Indemnity period : 12 months
B58: - Electricity | D58: R 349,376,490
B59: - Accommodation Income | D59: 0
B60: - Increase in Cost of Working | D60: R 5,000,000
B61: - Additional Increase in Cost of Working | D61: R 5,000,000
B63: Extensions
B64: - Specified suppliers / sub-contractors | D64: No
B65: - Sum insured | D65: R
B66: - Unspecified suppliers / sub-contractors | D66: No
B67: - Sum insured | D67: R
B68: - Specified Customers | D68: No
B69: - Sum insured | D69: R
B70: - Public Utilities | D70: Yes
B71: - Sum insured | D71: R 1000000
B72: - Fines and Penalties | D72: 0
B73: - Claims Preparation Costs | D73: R 100,000
B74: TOTAL BUSINESS INTERRUPTION | D74: =SUM(D58:D73) -> R 359,476,490
B76: Office Contents
B77: General Contents | D77: R 2,476,160
B78: Theft @ 25% included | D78: 500,000
B79: Loss of Documents | D79: R 500,000
B80: Legal Liability | D80: 0
B81: Increase in Cost of Working | D81: R 534,750
B82: Resonable Costs | D82: R 10,000
B83: Locks and Keys | D83: R 10,000
B84: - Claims Preparation Costs | D84: R 100,000
B85: TOTAL OFFICE CONTENTS | D85: =SUM(D77:D84) -> R 4,130,910
B87: ACCIDENTAL DAMAGE
B88: Limit of Indemnity | D88: R 1,000,000
B89: Total Value of Property | D89: =SUM(D12,D20,D23,D77) -> R 440,374,853 | G89: =E89*F89 -> 0
B90: TOTAL ACCIDENTAL DAMAGE | G90: =SUM(G88:G89) -> 0
B93: Accounts Receivable
B94: - Outstanding Debit Balances | D94: R 10,000,000
B96: Extensions
B97: - Duplicate Records | D97: No
B98: - Protections | D98: No
B99: - Riot and Strike (other than RSA and Namibia) | D99: No
B100: - Claims Preparation Costs | D100: R 100,000
B101: TOTAL ACCOUNTS RECEIVABLE | D101: =SUM(D94:D100) -> R 10,100,000
B103: Business All Risks
B104: - All other specified items (excluding Cellphones & Laptops) | D104: R 735,749
B105: - Cell-Phones | D105: 0
B106: - Laptops | D106: R 1,435,081
D107: 0
B109: Extensions
B110: - Increase in Cost of Working | D110: Yes
B111: - Sum insured | D111: R 100,000
B112: - Riot and Strike (other than RSA and Namibia) | D112: No
B113: - Locks and Keys | D113: R 10,000
B114: - Claims Preparation Costs | D114: R 100,000
B115: TOTAL BUSINESS ALL RISKS | D115: =SUM(D104:D114) -> R 2,380,830
B117: Theft
B118: - First Loss Limit | D118: R 50,000
B120: Extensions
B121: - Property in the open (within securely fenced off area and subject to forcible and violent entry or exit from such area) | D121: R 50,000
B122: - Theft of employee property | D122: R 2,000
B123: - Malicious Damage | D123: R 100,000
B124: - Reasonable Precautions | D124: R 20,000
B125: - Locks and Keys | D125: R 10,000
B126: - Claims Preparation Costs | D126: R 100,000
B127: TOTAL THEFT | D127: =SUM(D118:D126) -> R 332,000
B129: Glass
B130: - All fixed internal & external glass at the premises | D130: R 30,000
B132: Extensions
B133: - Riot and Strike (other than RSA and Namibia) | D133: No
B134: - Claims Preparation Costs | D134: R 100,000
B135: TOTAL GLASS | D135: =SUM(D130:D134) -> R 130,000
B137: Money
B138: - Possession of Councilors/Employees away from insured
B139: premises on a business trip | D139: R 5,000
B140: - On the premises outside business hours in locked
B141: safe | D141: R 5,000
B142: - Loss of or damage to crossed cheques, money or postal | D142: R 1,000,000
B143: - Major limit | D143: R 200,000
B144: - Seasonal | D144: 0
B145: - Receptacles as a result of theft of money or attempt | D145: R 20,000
B147: Extensions
B148: - Locks and keys | D148: R 5,000
B149: - Reasonable precautions | D149: R 20,000
B150: - Credit cards | D150: 0
B151: - Personal Accident ( Assault)
B152: Capital Sum | D152: R 25,000
B153: Weekly Amount | D153: R 2,000
B154: Medical Expenses | D154: R 10,000
B155: - Riot and Strike (other than RSA and Namibia) | D155: No
B156: - Electronic Vending machines | D156: 0
B157: - Claims Preparation Costs | D157: R 100,000
B158: TOTAL MONEY | D158: =SUM(D139:D157) -> R 1,392,000
B160: Fidelity Guarantee
B161: - Limit any one period | D161: R 100,000
B163: Extensions
B164: - Retroactive Cover | D164: 01.07.2018
B165: - Superseded Policy | D165: No
B166: - Reinstatement Amount | D166: Yes (1x)
B167: - Cost of Recovery | D167: 0
B168: - Claims Preparation Costs | D168: R 100,000
B169: TOTAL FIDELITY GUARANTEE | D169: =SUM(D161:D168) -> R 200,000
B172: Goods in Transit
B173: - Load Limit | D173: R 100,000
B175: Extensions
B176: - Removal of Debris | D176: R 50,000
B177: - Fire, Explosion, Collision and overturning | D177: R 20,000
B178: - Fire Extinguishing Expense | D178: R 10,000
B179: - Claims Preparation Costs | D179: R 100,000
B180: TOTAL GOODS IN TRANSIT | D180: =SUM(D173:D179) -> R 280,000
B182: Group Personal Accident - Business Hours
B183: - Councilors | D183: 15
B184: - Temporary staff - Volunteers | D184: 0
B187: Benefits
B188: - Death - Councilors | D188: R 150,000
B189: - Death - Temporary Staff Volunteers | D189: 0
B190: - Permanent Disability | D190: % of Death benefit as specified for particular disability
B191: - Temporary Total Disablement | D191: R 1 000 per week max 104 weeks
B192: - Medical expenses | D192: R 20,000
B193: - Additional death benefit | D193: R 10,000
B194: - Relocation | D194: R 10,000
B195: - Repatriation | D195: R 10,000
B196: - Mobility | D196: R 10,000
B198: Extensions
B199: - War Risks | D199: No
B200: - Claims Preparation Costs | D200: R 100,000
B201: - Maximum Limit Any One Life | D201: R 2 000 000.00
B202: - Maximum Limit Any One event ( Accumulation Limit) | D202: R 10 000 000.00
B203: TOTAL GROUP PERSONAL ACCIDENT
B205: Stated Benefits
B206: (A) All Employees (24 Hours) | D206: R 41,601,600
B208: Benefits
B209: - Death | D209: 3 x Annual earnings
B210: - Permanent Disability | D210: % of Death benefit as specified for particular disability
B211: - Temporary Total Disablement | D211: 100% of average weekly earnings max 104 weeks
B212: - Medical Expenses | D212: R 20,000
B213: - Additional death benefits | D213: R 10,000
B214: - Relocation | D214: R 10,000
B215: - Repatriation | D215: R 10,000
B216: - Mobility | D216: R 10,000
B218: Extensions
B219: - War Risks | D219: No
B220: - Claims Preparation Costs | D220: R 100,000
B221: - Maximum Limit Any One Life | D221: R 2 000 000.00
B222: - Maximum Limit Any One event ( Accumulation Limit) | D222: R 10 000 000.00
B223: TOTAL STATED BENEFITS
B225: Electronic Equipment
B226: - Specified Equipment | D226: R 2,838,944
B227: - Laptops | D227: R 1,453,081
B228: - Software & Licenses | D228: 0
B229: - HP Deskjet Printers | D229: 0
B231: Extensions
B232: - Prevention of Access | D232: No
B233: - Increase in Cost of Working | D233: R 120,000
B234: - Reconstruction of Data | D234: R 120,000
B235: - Incompatibility | D235: Yes
B236: - Telkom access line | D236: Yes
B237: - Utilities ( Failure of supply) | D237: No
B238: - Riot and Strike (other than RSA and Namibia) | D238: No
B239: - Claims Preparation Costs | D239: R 100,000
B240: TOTAL ELECTRONIC EQUIPMENT | D240: =SUM(D226:D239) -> R 4,632,026
... 95 more rows
